bitfinex/quotes_ETHUSD_20241105
["timestamp","ask_amount","ask_price","bid_price","bid_amount"]
[1730848630428,0.04412875,2435.2,2435.1,0.36636632]
[1730848630748,4.10611,2435.4,2435.1,0.36636632]
[1730848630953,4.10611,2435.4,2435.2,0.36636632]
[1730848631125,0.0442709,2435.3,2435.0,4.92236715]
[1730848631315,0.0442709,2435.3,2435.1,1.52394748]
[1730848631513,4.92597,2435.5,2435.2,0.36633013]
[1730848631716,4.92597,2435.5,2435.3,0.36633013]
[1730848631955,4.92597,2435.5,2435.1,0.58614629]
[1730848632127,4.92597,2435.5,2435.2,0.36634325]
[1730848632316,4.92597,2435.5,2435.3,0.36634325]
[1730848632515,0.8199,2435.7,2435.2,0.792]
[1730848632721,5.0,2436.0,2435.2,0.792]
[1730848632722,0.8199,2436.2,2435.9,4.10513]
[1730848633015,4.10428,2436.5,2436.0,5.75590638]
[1730848633241,4.10471,2436.3,2436.0,0.792]
[1730848633448,4.10494,2436.1,2435.8,0.36565431]
[1730848633719,4.10494,2436.1,2435.6,1.37704896]
[1730848633720,4.96669389,2436.2,2435.7,4.10557]
[1730848633951,0.04081927,2436.0,2435.6,1.37708971]
[1730848634253,0.04081927,2436.0,2435.7,0.36568033]
[1730848634254,0.04193845,2435.9,2435.7,0.36568033]
[1730848634553,0.04193845,2435.9,2435.6,0.792]
[1730848634763,0.04193845,2435.9,2435.7,0.36548683]
[1730848634959,4.10494,2436.1,2435.6,0.792]
[1730848635170,0.04184964,2435.8,2435.7,0.36545194]
[1730848635322,4.10494,2436.1,2435.7,0.36545194]
[1730848635655,4.10494,2436.1,2435.6,0.792]
[1730848635656,5.14409051,2436.1,2435.6,0.792]
[1730848635833,5.14409051,2436.1,2435.7,0.36531858]
[1730848635834,0.04202725,2436.0,2435.7,0.36531858]
[1730848636033,0.04202725,2436.0,2435.6,0.792]
[1730848636339,0.04202725,2436.0,2435.7,0.36521999]
[1730848636568,0.04202725,2436.0,2435.6,0.792]
[1730848636753,0.04202725,2436.0,2435.7,0.36523304]
[1730848637069,4.14722725,2436.0,2435.6,0.792]
[1730848637656,0.04202725,2436.0,2435.6,0.792]
[1730848637939,0.04202725,2436.0,2435.7,4.10549]
[1730848638101,0.04202725,2436.0,2435.9,4.88135]
[1730848638250,4.10407,2436.6,2436.0,4.10506]
[1730848638455,4.10407,2436.6,2436.0,8.21004]
[1730848638751,4.10407,2436.6,2436.0,4.10498]
[1730848638953,5.307219,2436.6,2436.0,4.10498]
[1730848639377,4.1043,2436.5,2436.0,4.10498]
[1730848639562,4.1043,2436.5,2436.0,8.20999]
[1730848639763,0.8234,2436.7,2435.9,0.7761]
[1730848639953,4.92743,2436.7,2436.2,4.10464]
[1730848641100,4.10409,2436.6,2436.1,0.7761]
[1730848641385,4.10426,2436.5,2436.1,0.7761]
[1730848641954,0.04147442,2436.4,2436.1,0.7761]
[1730848642457,4.14589442,2436.4,2436.0,4.10492]
[1730848642677,4.14589442,2436.4,2435.9,4.88135]
[1730848642879,4.14589442,2436.4,2435.9,5.81652617]
[1730848644266,4.10475,2436.2,2435.9,0.7761]
[1730848644468,4.10475,2436.2,2435.7,1.14121173]
[1730848644769,0.86447252,2436.3,2435.7,1.14121173]
[1730848644770,4.10539,2435.9,2435.7,0.36511173]
[1730848644965,4.92879,2435.9,2435.7,0.36511173]
[1730848645207,4.92879,2435.9,2435.5,0.7761]
[1730848645208,0.04103248,2435.8,2435.5,0.7761]
[1730848645696,4.14646248,2435.8,2435.4,4.10596]
[1730848645999,0.04103248,2435.8,2435.4,4.10596]
[1730848646202,0.04103248,2435.8,2435.4,5.004796]
[1730848646394,0.04103248,2435.8,2435.4,0.898836]
[1730848646700,4.14653248,2435.8,2435.3,4.88236]
[1730848647456,4.10562,2435.7,2435.3,0.7761]
[1730848647694,4.14647477,2435.7,2435.3,0.7761]
[1730848647861,0.04085477,2435.7,2435.3,4.88221]
[1730848648060,8.21107,2435.8,2435.3,4.88221]
[1730848648257,0.04076596,2435.6,2435.3,0.7761]
[1730848648483,4.1055,2435.8,2435.3,4.88235]
[1730848648687,0.04067714,2435.5,2435.3,4.88235]
[1730848648884,8.21107,2435.8,2435.3,4.88235]
[1730848649069,0.04058831,2435.4,2435.3,4.88235]
[1730848649275,8.21107,2435.8,2435.1,4.1065]
[1730848649276,4.1056,2435.7,2435.1,9.01991]
[1730848649597,0.04058831,2435.4,2435.1,0.8069]
[1730848649800,4.10595,2435.5,2435.1,0.8069]
[1730848649959,0.04046206,2435.3,2435.1,0.8069]
[1730848650155,4.10595,2435.5,2435.1,4.91349]
[1730848650418,0.04037322,2435.2,2435.1,4.91349]
[1730848650559,4.10595,2435.5,2435.1,5.815524]
[1730848650760,0.04037322,2435.2,2435.1,5.815524]
[1730848650979,4.10595,2435.5,2435.1,5.815524]
[1730848651495,0.04055089,2435.4,2435.3,4.10627]
[1730848651691,4.92875,2435.9,2435.4,4.10598]
[1730848651996,4.10552,2435.8,2435.3,4.10627]
[1730848653493,8.21103,2435.8,2435.3,4.10627]
[1730848653811,0.04071062,2435.7,2435.3,4.10627]
[1730848654025,4.14646062,2435.7,2435.1,5.815474]
[1730848654297,0.04051922,2435.6,2435.2,4.47142058]
[1730848654496,0.04051922,2435.6,2435.2,4.1063]
[1730848654712,0.04051922,2435.6,2435.1,5.815474]
[1730848654874,4.10603,2435.5,2435.1,0.8069]
[1730848655074,4.10603,2435.5,2435.1,0.3651163]
[1730848655075,4.10619,2435.4,2435.1,0.3651163]
[1730848655420,4.87539,2435.1,2434.8,0.36526711]
[1730848655696,4.14608639,2435.0,2434.6,0.65562295]
[1730848655905,4.14608639,2435.0,2434.7,0.36536083]
[1730848656117,4.10698,2434.9,2434.7,0.36536083]
[1730848656267,0.03972337,2434.9,2434.6,0.36536083]
[1730848656462,5.773572,2435.1,2434.6,0.36536083]
[1730848656693,5.773572,2435.1,2434.5,4.91448]
[1730848656891,5.773572,2435.1,2434.6,0.3653822]
[1730848657127,5.773572,2435.1,2434.5,4.91448]
[1730848657332,4.10682,2435.0,2434.5,4.91448]
[1730848657534,4.14666335,2435.0,2434.5,4.91448]
[1730848657823,0.03984335,2435.0,2434.6,0.36528832]
[1730848658231,4.14662335,2435.0,2434.5,5.93953761]
[1730848659198,0.03984335,2435.0,2434.5,5.93953761]
[1730848659399,0.03984335,2435.0,2434.7,4.10727]
[1730848660740,0.03984335,2435.0,2434.7,4.1072]
[1730848660938,4.87504,2435.3,2434.8,4.10705]
[1730848661236,0.0379838,2434.9,2434.8,4.10699]
[1730848661441,4.87504,2435.3,2434.8,4.10699]
[1730848661597,0.0379838,2434.9,2434.8,4.99602476]
[1730848661794,0.7687,2435.3,2434.9,4.10684]
[1730848662625,0.7687,2435.3,2435.0,4.10669]
[1730848662826,4.91954,2435.5,2434.9,0.98419977]
[1730848663138,4.91954,2435.5,2435.0,8.21345]
[1730848663712,4.91954,2435.5,2435.0,4.10668]
[1730848663928,0.8135,2435.5,2435.1,4.10644]
[1730848664280,4.91872,2436.0,2435.5,4.10592]
[1730848664552,0.491872,2435.9,2435.5,4.10592]
[1730848664729,4.14394566,2435.9,2435.5,4.10592]
[1730848665524,0.03868566,2435.9,2435.5,4.10592]
[1730848666424,4.14394566,2435.9,2435.4,4.10607]
[1730848666647,0.03868566,2435.9,2435.5,4.10593]
[1730848667032,4.10551,2435.8,2435.3,4.10615]
[1730848667227,0.03868566,2435.9,2435.3,5.005042]
[1730848667472,0.03920482,2435.7,2435.4,4.10601]
[1730848667622,4.10526,2435.9,2435.4,4.10601]
[1730848667976,0.0391233,2435.8,2435.4,4.10601]
[1730848671637,4.1446633,2435.8,2435.3,5.005042]
[1730848671824,4.91935,2435.6,2435.2,0.7766]
[1730848672026,0.0394906,2435.5,2435.2,0.7766]
[1730848673860,4.10628,2435.3,2435.0,0.7766]
[1730848674064,4.10647,2435.2,2434.8,1.36201514]
[1730848674250,0.03939439,2435.2,2434.9,0.36604775]
[1730848674566,0.85289439,2435.2,2434.8,4.88363]
[1730848674720,0.85289439,2435.2,2434.9,0.36607206]
[1730848674924,0.85289439,2435.2,2434.8,4.88363]
[1730848675167,0.85289439,2435.2,2434.9,0.36611056]
[1730848675330,0.85289439,2435.2,2434.8,4.88363]
[1730848675529,0.85289439,2435.2,2434.9,0.3661845]
[1730848675741,0.85289439,2435.2,2434.8,4.88363]
[1730848676065,0.85289439,2435.2,2434.9,0.36616775]
[1730848676373,1.75944783,2435.2,2434.6,0.7766]
[1730848676568,4.10677,2435.0,2434.7,0.366245]
[1730848676740,4.10677,2435.0,2434.5,4.69358407]
[1730848676930,0.03895549,2434.9,2434.6,0.36629787]
[1730848677130,0.03895549,2434.9,2434.7,0.36629787]
[1730848677331,4.92003,2435.2,2434.6,8.80422307]
[1730848677531,0.03888828,2434.8,2434.7,0.36622843]
[1730848677843,4.10677,2435.1,2434.7,0.36622843]
[1730848678166,4.92003,2435.2,2434.6,4.1073]
[1730848678458,4.14536027,2435.0,2434.7,0.36626938]
[1730848678624,4.10678,2435.0,2434.6,4.1073]
[1730848678824,4.10711,2434.8,2434.7,0.36627651]
[1730848679266,4.14405201,2434.8,2434.7,0.36627716]
[1730848679469,0.03694201,2434.8,2434.4,5.53004732]
[1730848679645,0.03694201,2434.8,2434.5,4.47384776]
[1730848679966,0.03694201,2434.8,2434.6,0.36627776]
[1730848680173,0.03694201,2434.8,2434.5,4.10757]
[1730848680480,0.03694201,2434.8,2434.6,4.47363612]
[1730848680668,0.03694201,2434.8,2434.7,0.36630612]
[1730848680824,4.10694,2434.9,2434.5,0.96378973]
[1730848681027,0.03713111,2434.8,2434.5,0.96378973]
[1730848681232,0.03713111,2434.8,2434.6,0.3662982]
[1730848681535,0.03713111,2434.8,2434.4,4.9440488]
[1730848681739,0.03713111,2434.8,2434.5,0.3663112]
[1730848681943,0.03713111,2434.8,2434.4,5.9507981]
[1730848682143,0.03713111,2434.8,2434.5,0.36627957]
[1730848682372,0.03713111,2434.8,2434.6,0.36627957]
[1730848682655,0.03713111,2434.8,2434.4,5.9507981]
[1730848682843,0.03713111,2434.8,2434.5,0.36627856]
[1730848683039,0.03713111,2434.8,2434.6,0.36627856]
[1730848683366,0.03713111,2434.8,2434.4,6.536845]
[1730848683565,0.03713111,2434.8,2434.5,0.36626752]
[1730848683768,0.7744,2434.7,2434.6,0.36626752]
[1730848683971,0.81127379,2434.7,2434.4,0.0597488]
[1730848684168,0.03687379,2434.7,2434.5,0.36636444]
[1730848684356,4.10714,2434.8,2434.4,4.1673788]
[1730848684691,4.88134,2434.9,2434.5,0.36636613]
[1730848684987,0.03697635,2434.7,2434.6,1.18373758]
[1730848685285,4.10706,2434.9,2434.5,0.36633758]
[1730848685444,4.10706,2434.9,2434.4,5.99563468]
[1730848685641,0.03677505,2434.7,2434.5,0.36638252]
[1730848685882,4.1439739,2434.8,2434.4,5.99563468]
[1730848686176,0.03668619,2434.6,2434.5,0.36639502]
[1730848686391,4.10711,2434.8,2434.4,0.0597488]
[1730848686679,0.03651864,2434.6,2434.4,0.0597488]
[1730848686905,4.88176,2434.7,2434.5,0.36625086]
[1730848687069,4.10754,2434.6,2434.4,0.0597488]
[1730848687269,4.10761,2434.5,2434.4,0.0597488]
[1730848687581,4.1437197,2434.5,2434.4,0.0597488]
[1730848687753,4.65173641,2434.5,2434.4,0.0597488]
[1730848693366,4.1437197,2434.5,2434.4,0.0597488]
[1730848695004,4.9360197,2434.5,2434.4,0.0597488]
[1730848695824,4.89991,2434.5,2434.4,0.0597488]
[1730848700267,11.05834312,2434.5,2434.4,0.0597488]
[1730848703876,7.89991,2434.5,2434.4,0.0597488]
[1730848704539,8.90968906,2434.5,2434.4,0.0597488]
[1730848705678,7.89991,2434.5,2434.4,0.0597488]
[1730848709431,7.10761,2434.5,2434.4,0.0597488]
[1730848711900,4.10761,2434.5,2434.4,0.0597488]
[1730848712616,0.8227,2434.7,2434.4,0.0597488]
[1730848712800,4.10738,2434.7,2434.4,0.0597488]
[1730848712991,4.14330068,2434.7,2434.4,0.55323668]
[1730848713221,4.10738,2434.7,2434.4,0.55323668]
[1730848714239,4.14331321,2434.7,2434.4,0.55323668]
[1730848714555,0.03593321,2434.7,2434.4,0.55323668]
[1730848714724,4.10686,2435.0,2434.5,0.84924958]
[1730848714925,0.03596803,2434.7,2434.5,0.7671]
[1730848715124,4.10703,2434.9,2434.5,1.72068167]
[1730848717540,4.10686,2435.0,2434.5,5.06114167]
[1730848717865,4.10686,2435.0,2434.7,0.7671]
[1730848718445,4.10706,2434.9,2434.7,0.7671]
[1730848718665,3.8227,2435.3,2434.7,0.7671]
[1730848718869,4.10668,2435.1,2434.7,0.7671]
[1730848720953,8.21338,2435.1,2434.7,0.7671]
[1730848721288,4.10644,2435.2,2434.7,5.361808]
[1730848721779,4.1067,2435.1,2434.7,1.254538]
[1730848724572,4.1067,2435.1,2434.7,5.361818]
[1730848724742,4.1067,2435.1,2434.8,0.9469098]
[1730848724944,4.10628,2435.3,2434.9,0.7949]
[1730848725145,4.10563,2435.7,2435.0,4.10665]
[1730848725375,4.10577,2435.6,2435.2,4.10643]
[1730848726042,4.10577,2435.6,2435.1,4.98361863]
[1730848726789,8.15843312,2436.0,2435.4,4.90098]
[1730848726790,4.10534,2435.9,2435.4,4.90098]
[1730848727144,0.7707,2436.2,2435.6,0.7949]
[1730848727483,4.10493,2436.1,2435.6,9.00616]
[1730848727692,4.10467,2436.3,2435.7,4.10558]
[1730848727846,4.10467,2436.3,2435.7,4.18768241]
[1730848728794,4.10467,2436.3,2435.8,0.7949]
[1730848729386,0.7707,2436.4,2435.8,4.90021]
[1730848729587,4.10441,2436.4,2435.8,4.90021]
[1730848729790,4.10441,2436.4,2435.8,5.48850284]
[1730848730144,4.1047,2436.3,2435.8,1.38319284]
[1730848730344,4.10475,2436.2,2435.8,1.38319284]
[1730848730749,4.1047,2436.3,2435.8,1.38319284]
[1730848731086,8.20943,2436.3,2435.8,1.38319284]
[1730848731287,4.1047,2436.3,2435.8,1.38319284]
[1730848731680,4.10477,2436.2,2435.8,1.38319284]
[1730848731853,4.1047,2436.3,2435.8,1.38319284]
[1730848732312,4.10433,2436.5,2435.9,4.65412528]
[1730848732461,4.10401,2436.7,2436.1,4.10481]
[1730848732660,4.10401,2436.7,2436.2,0.7949]
[1730848733295,4.10329,2437.1,2436.3,0.87698789]
[1730848733296,4.87405,2437.1,2436.3,0.87698789]
[1730848733602,0.40154947,2437.6,2436.3,0.87698789]
[1730848733603,3.92913312,2437.6,2436.6,0.7949]
[1730848733771,4.10258,2437.5,2437.1,0.7949]
[1730848733973,4.512838,2437.5,2437.1,0.7949]
[1730848734194,4.10291,2437.3,2437.1,0.7949]
[1730848734890,8.20539,2437.5,2437.1,0.7949]
[1730848735207,4.10267,2437.5,2437.1,0.7949]
[1730848735601,4.1029,2437.3,2437.1,0.7949]
[1730848735898,4.1029,2437.3,2436.5,0.7949]
[1730848736111,3.64579312,2437.3,2436.5,0.7949]
[1730848736395,4.10379,2436.8,2436.5,0.7949]
[1730848736766,4.10379,2436.8,2436.1,4.1048]
[1730848736767,4.10391,2436.7,2436.2,0.7949]
[1730848736958,4.10379,2436.8,2436.2,0.7949]
[1730848737162,4.10409,2436.6,2436.2,0.7949]
[1730848737664,0.820788,2436.6,2436.2,0.7949]
[1730848737888,4.10417,2436.6,2436.2,0.7949]
[1730848738072,4.10417,2436.6,2435.4,3.15843312]
[1730848738073,7.10407,2436.6,2436.0,0.7506]
[1730848738385,4.10464,2436.3,2436.0,0.7506]
[1730848738586,8.20933,2436.3,2436.0,0.7506]
[1730848738771,4.10475,2436.2,2436.0,0.7506]
[1730848739099,4.10464,2436.3,2436.0,0.7506]
[1730848739298,8.20932,2436.3,2436.0,0.7506]
[1730848740066,4.10477,2436.2,2436.0,0.7506]
[1730848740889,4.10492,2436.1,2436.0,0.7506]
[1730848741095,4.1051,2436.0,2435.5,4.10578]
[1730848741403,4.1051,2436.0,2435.4,5.21998592]
[1730848741404,4.10509,2436.0,2435.4,4.8567]
[1730848741567,4.10555,2435.8,2435.4,0.7506]
[1730848741768,4.10541,2435.9,2435.4,0.7506]
[1730848742177,4.10551,2435.8,2435.4,0.7506]
[1730848742369,4.10569,2435.7,2435.4,0.7506]
[1730848742592,7.67389512,2436.1,2435.4,0.7506]
[1730848742593,0.410492,2436.1,2435.4,0.7506]
[1730848742795,4.10527,2435.9,2435.4,4.85666]
[1730848743287,4.10545,2435.8,2435.4,0.7506]
[1730848743666,4.10527,2435.9,2435.4,5.752932]
[1730848743869,4.10527,2435.9,2435.4,1.646912]
[1730848743870,4.10543,2435.8,2435.4,1.646912]
[1730848744166,8.21064,2435.9,2435.4,1.646912]
[1730848744366,8.21064,2435.9,2435.4,0.7506]
[1730848745168,4.10548,2435.8,2435.4,0.7506]
[1730848745867,4.10527,2435.9,2435.4,0.7506]
[1730848746115,4.10545,2435.8,2435.4,0.7506]
[1730848747569,8.21066,2435.9,2435.4,0.7506]
[1730848747881,4.10546,2435.8,2435.4,0.7506]
[1730848749569,0.410492,2436.1,2435.4,0.7506]
[1730848749570,4.515432,2436.1,2435.4,0.7506]
[1730848749769,4.10574,2435.7,2435.4,0.7506]
[1730848749976,0.9515432,2436.0,2435.4,0.7506]
[1730848749977,4.10593,2435.5,2435.4,0.7506]
[1730848750304,4.10574,2435.7,2435.4,0.7506]
[1730848750484,4.10542,2435.8,2435.4,0.7506]
[1730848750809,4.10561,2435.7,2435.4,0.7506]
[1730848752187,4.10578,2435.6,2435.4,1.11479523]
[1730848752388,4.10578,2435.6,2435.4,0.7506]
[1730848753279,4.10542,2435.8,2435.4,0.7506]
[1730848753486,4.10569,2435.7,2435.4,0.7506]
[1730848754210,4.10569,2435.7,2435.5,0.36503932]
[1730848754513,4.10559,2435.7,2435.4,0.7506]
[1730848754715,4.10578,2435.6,2435.4,0.7506]
[1730848755982,4.10593,2435.5,2435.4,0.7506]
[1730848756181,4.10593,2435.5,2435.4,0.36517926]
[1730848756615,4.10593,2435.5,2435.2,0.7556]
[1730848756920,4.1061,2435.4,2435.3,0.36525508]
[1730848757135,4.927303,2435.4,2435.3,0.36525508]
[1730848757427,4.10628,2435.3,2435.0,1.3398672]
[1730848757577,4.10628,2435.3,2435.1,0.36525367]
[1730848757897,4.10628,2435.3,2435.2,0.36521579]
[1730848759218,4.10655,2435.2,2435.1,0.3651021]
[1730848759582,4.927835,2435.2,2435.0,0.7556]
[1730848759782,4.10662,2435.1,2434.8,0.7556]
[1730848760032,4.10662,2435.1,2434.9,0.3651219]
[1730848760189,4.10662,2435.1,2435.0,0.3651219]
[1730848760524,4.10662,2435.1,2435.0,0.36502836]
[1730848761082,4.10602,2435.5,2435.0,0.36502836]
[1730848761299,8.21269,2435.3,2434.9,0.36490655]
[1730848761501,8.21269,2435.3,2434.8,1.33964745]
[1730848761730,8.21269,2435.3,2434.9,0.36492335]
[1730848761925,8.21269,2435.3,2434.8,2.2950452]
[1730848762231,8.21269,2435.3,2434.9,0.36492318]
[1730848762440,4.10627,2435.3,2434.9,0.36492318]
[1730848764438,4.10627,2435.3,2434.8,6.40211278]
[1730848764588,4.10627,2435.3,2434.9,1.05092628]
[1730848765028,4.10627,2435.3,2434.9,5.15785628]
[1730848765186,4.10627,2435.3,2434.9,1.05092628]
[1730848765388,4.10627,2435.3,2435.0,0.36531187]
[1730848765619,4.10644,2435.2,2434.8,4.86269]
[1730848765926,4.10627,2435.3,2434.9,0.36530049]
[1730848766091,4.10627,2435.3,2434.8,5.4073605]
[1730848766092,4.10627,2435.3,2435.0,0.36530049]
[1730848766290,4.10627,2435.3,2435.1,0.36553876]
[1730848766490,4.10627,2435.3,2434.9,0.58401503]
[1730848766690,4.10645,2435.2,2435.0,0.36554444]
[1730848766887,4.1066,2435.1,2434.8,1.3002705]
[1730848767211,4.1066,2435.1,2434.9,0.94958046]
[1730848767411,4.1066,2435.1,2435.0,0.36556543]
[1730848767726,4.10645,2435.2,2435.0,0.36556543]
[1730848767927,4.10645,2435.2,2434.8,1.3002705]
[1730848768129,4.10645,2435.2,2434.9,0.36583771]
[1730848768420,4.10645,2435.2,2435.0,0.36583771]
[1730848768625,4.10645,2435.2,2434.8,1.3002705]
[1730848768828,4.10645,2435.2,2434.9,0.36591864]
[1730848768984,4.10645,2435.2,2435.0,0.36591864]
[1730848769187,4.10645,2435.2,2434.9,0.58542192]
[1730848769383,4.10645,2435.2,2435.0,0.36599621]
[1730848769597,4.10645,2435.2,2434.9,0.58542192]
[1730848769831,4.10645,2435.2,2435.0,0.36600149]
[1730848770037,4.10645,2435.2,2434.9,0.58542192]
[1730848770336,4.10645,2435.2,2435.0,0.36600451]
[1730848770534,4.10645,2435.2,2434.8,1.3002705]
[1730848770832,4.10672,2435.1,2434.9,0.36598887]
[1730848770993,4.10672,2435.1,2434.8,1.3002705]
[1730848770994,4.10672,2435.1,2434.8,0.7556]
[1730848771197,4.10672,2435.1,2434.9,0.36595979]
[1730848771399,4.10672,2435.1,2435.0,0.36595979]
[1730848772439,4.928037,2435.1,2435.0,0.36595979]
[1730848772948,4.10701,2434.9,2434.7,0.5857719]
[1730848773149,4.10701,2434.9,2434.8,0.36611047]
[1730848774934,4.10701,2434.9,2434.8,0.36609724]
[1730848775244,4.10701,2434.9,2434.6,0.7908]
[1730848775944,4.10701,2434.9,2434.7,0.36612645]
[1730848776647,4.1068,2435.0,2434.6,0.7908]
[1730848777036,4.1068,2435.0,2434.6,1.28661488]
[1730848777555,4.10703,2434.9,2434.7,0.36616131]
[1730848777865,4.10728,2434.7,2434.5,0.58586017]
[1730848778068,4.10728,2434.7,2434.4,0.0597488]
[1730848778069,0.7797,2434.9,2434.6,0.36623435]
[1730848778355,4.10713,2434.8,2434.7,0.36619479]
[1730848778659,4.10729,2434.7,2434.4,0.8505488]
[1730848778958,4.10729,2434.7,2434.5,0.36618651]
[1730848779126,4.10761,2434.5,2434.4,0.8505488]
[1730848779319,4.10761,2434.5,2434.4,1.80270969]
[1730848779516,4.10761,2434.5,2434.4,1.21684952]
[1730848780061,4.10761,2434.5,2434.4,0.8505488]
[1730848780359,4.10745,2434.6,2434.4,1.21683773]
[1730848780557,4.10745,2434.6,2434.5,0.36622097]
[1730848781325,4.10745,2434.6,2434.4,0.8505488]
[1730848782393,4.10724,2434.8,2434.5,0.36613295]
[1730848782685,4.10724,2434.8,2434.4,0.8505488]
[1730848782858,4.10724,2434.8,2434.5,0.36609874]
[1730848783060,4.10724,2434.8,2434.4,0.8505488]
[1730848783277,4.10711,2434.8,2434.5,0.36606551]
[1730848783445,4.10738,2434.7,2434.4,0.8505488]
[1730848783655,4.10738,2434.7,2434.5,0.36614913]
[1730848783890,4.10738,2434.7,2434.4,0.8505488]
[1730848784057,4.10738,2434.7,2434.5,0.36614095]
[1730848784263,4.10738,2434.7,2434.4,0.8505488]
[1730848784496,4.10745,2434.6,2434.5,0.36618597]
[1730848784995,4.10745,2434.6,2434.4,0.8505488]
[1730848785194,4.10745,2434.6,2434.5,0.36619023]
[1730848788200,4.10745,2434.6,2434.4,0.8505488]
[1730848788405,4.88651,2435.0,2434.5,0.36624114]
[1730848788406,4.1072,2434.8,2434.5,0.36624114]
[1730848788573,4.1072,2434.8,2434.6,0.36624114]
[1730848788758,4.1072,2434.8,2434.4,1.43653669]
[1730848789094,8.21442,2434.8,2434.5,0.36620762]
[1730848789394,4.10728,2434.7,2434.6,0.36620762]
[1730848790584,4.1074,2434.7,2434.4,0.8505488]
[1730848790881,4.10752,2434.6,2434.5,0.36628648]
[1730848793174,4.10708,2434.9,2434.5,0.36628648]
[1730848793175,4.1073,2434.7,2434.5,0.36628648]
[1730848793371,4.1073,2434.7,2434.4,0.0597488]
[1730848793702,4.10654,2435.2,2434.6,4.85736]
[1730848793703,4.10659,2435.2,2434.6,4.85736]
[1730848793866,0.7582,2435.3,2434.7,0.36634661]
[1730848794069,4.10695,2434.9,2434.6,0.75]
[1730848794667,4.10678,2435.0,2434.7,0.36631977]
[1730848794867,4.10678,2435.0,2434.6,0.75]
[1730848795090,4.10677,2435.0,2434.7,0.36631325]
[1730848795292,4.10677,2435.0,2434.6,1.30035317]
[1730848795293,4.10677,2435.0,2434.6,0.75]
[1730848795978,4.10677,2435.0,2434.7,0.36636918]
[1730848796304,4.10677,2435.0,2434.6,0.75]
[1730848796504,4.10677,2435.0,2434.7,0.36642797]
[1730848796714,4.10677,2435.0,2434.6,0.75]
[1730848797000,4.10703,2434.9,2434.7,0.36641474]
[1730848797175,4.10703,2434.9,2434.6,0.75]
[1730848797581,4.10721,2434.8,2434.4,0.8819488]
[1730848797905,4.10736,2434.7,2434.4,0.8819488]
[1730848798089,4.10736,2434.7,2434.5,0.36652071]
[1730848798265,4.10736,2434.7,2434.6,0.36657255]
[1730848798668,3.7582,2435.0,2434.4,0.0597488]
[1730848798900,4.10746,2434.6,2434.5,0.36661399]
[1730848799207,4.10714,2434.8,2434.5,0.36667447]
[1730848799497,4.10714,2434.8,2434.4,0.0597488]
[1730848799498,4.10739,2434.7,2434.4,0.0597488]
[1730848799739,4.10739,2434.7,2434.5,0.36667509]
[1730848799881,4.10739,2434.7,2434.4,0.0597488]
[1730848800085,4.10739,2434.7,2434.5,0.36667649]
[1730848800396,4.10739,2434.7,2434.4,0.0597488]
[1730848800581,4.10739,2434.7,2434.5,0.3667247]
[1730848800782,4.10739,2434.7,2434.4,0.0597488]
[1730848801003,4.10739,2434.7,2434.5,0.36671949]
[1730848801212,4.10687,2435.0,2434.6,0.8222]
[1730848801383,4.10687,2435.0,2434.7,0.36675034]
[1730848801384,4.10694,2434.9,2434.7,0.36675034]
[1730848801587,4.10694,2434.9,2434.6,0.8222]
[1730848801827,4.10694,2434.9,2434.7,0.36675739]
[1730848802123,4.10694,2434.9,2434.6,0.8222]
[1730848802322,4.10694,2434.9,2434.7,0.36689879]
[1730848802527,4.10694,2434.9,2434.6,0.8222]
[1730848802690,4.10694,2434.9,2434.7,0.36688161]
[1730848802891,4.10714,2434.8,2434.6,0.8222]
[1730848803231,4.10714,2434.8,2434.7,0.36689582]
[1730848803403,4.928548,2434.8,2434.7,0.36689582]
[1730848803599,4.10753,2434.6,2434.4,0.0597488]
[1730848803913,4.10753,2434.6,2434.5,0.36702662]
[1730848804113,4.10753,2434.6,2434.4,0.0597488]
[1730848804312,4.10753,2434.6,2434.5,0.36707357]
[1730848807325,4.10761,2434.5,2434.4,0.0597488]
[1730848807526,4.10761,2434.5,2434.4,0.42680559]
[1730848807833,4.10761,2434.5,2434.4,0.42688072]
[1730848808141,4.10761,2434.5,2434.4,0.0597488]
[1730848808361,4.10745,2434.6,2434.4,0.42686676]
[1730848808526,4.10745,2434.6,2434.5,0.36708481]
[1730848808726,8.21465,2434.7,2434.5,0.36708481]
[1730848808927,8.21465,2434.7,2434.4,0.0597488]
[1730848809127,8.21465,2434.7,2434.5,0.36708432]
[1730848809323,8.21465,2434.7,2434.4,0.0597488]
[1730848809324,4.86197,2435.0,2434.4,4.1674288]
[1730848809573,4.1066,2435.1,2434.5,1.18920885]
[1730848809777,4.10716,2434.8,2434.6,0.36700885]
[1730848809941,4.10696,2434.9,2434.7,0.36700885]
[1730848810145,4.10696,2434.9,2434.5,0.8222]
[1730848810363,4.10696,2434.9,2434.6,0.36696263]
[1730848810562,4.10696,2434.9,2434.7,0.36696263]
[1730848810912,8.21402,2434.9,2434.5,0.8222]
[1730848811036,4.10696,2434.9,2434.6,0.36696184]
[1730848811237,8.21399,2434.9,2434.7,0.36696184]
[1730848811438,4.10696,2434.9,2434.5,0.8222]
[1730848811775,4.1072,2434.8,2434.5,0.8222]
[1730848811972,4.1072,2434.8,2434.6,0.36687227]
[1730848812172,4.1072,2434.8,2434.7,0.36687227]
[1730848812884,4.10696,2434.9,2434.7,0.36687227]
[1730848813033,4.10696,2434.9,2434.5,0.8222]
[1730848813233,4.10696,2434.9,2434.6,0.36684006]
[1730848813436,4.10696,2434.9,2434.7,0.36684006]
[1730848813635,4.10696,2434.9,2434.5,0.8222]
[1730848813876,4.10696,2434.9,2434.6,0.36683167]
[1730848814087,4.10673,2435.1,2434.7,0.36683167]
[1730848814237,8.21272,2435.3,2434.8,1.15953167]
[1730848814435,4.10635,2435.3,2434.8,0.7927]
[1730848814759,8.21273,2435.3,2434.9,0.36675496]
[1730848815077,8.21273,2435.3,2434.8,0.7927]
[1730848815078,4.10644,2435.2,2434.8,0.7927]
[1730848815284,4.10628,2435.3,2434.9,0.44886499]
[1730848815493,4.89267,2435.7,2435.0,1.15934183]
[1730848815794,4.10537,2435.9,2435.3,4.89896]